[Event "Titled Tuesday Blitz May 16 Late 2023"]
[White "Kleiman, Jake"]
[Black "Riehle, Marco"]
[WhiteFideId "2020041"]
[BlackFideId "12904392"]
[WhiteElo "2569"]
[BlackElo "2462"]
[Result "1/2-1/2"]
[Round "02"]
[TimeControl "180+2"]
[Date "2023.05.16"]
[WhiteClock "0:00:10"]
[BlackClock "0:00:15"]

1. e4 {[%clk 0:03:00]}  e5 {[%clk 0:02:59]} 2. Nf3 {[%clk 0:03:00]}  Nf6 {[%clk 0:02:59]} 3. Nxe5 {[%clk 0:02:57]}  Nxe4 {[%clk 0:02:58]} 4. Qe2 {[%clk 0:02:57]}  Qe7 {[%clk 0:02:58]} 5. Qxe4 {[%clk 0:02:57]}  d6 {[%clk 0:02:58]} 6. d4 {[%clk 0:02:57]}  dxe5 {[%clk 0:02:59]} 7. Qxe5 {[%clk 0:02:55]}  Qxe5+ {[%clk 0:02:59]} 8. dxe5 {[%clk 0:02:55]}  Bf5 {[%clk 0:02:59]} 9. Bb5+ {[%clk 0:02:22]}  Nd7 {[%clk 0:02:59]} 10. Be3 {[%clk 0:02:06]}  c6 {[%clk 0:02:58]} 11. Be2 {[%clk 0:02:05]}  Nxe5 {[%clk 0:02:58]} 12. Bd4 {[%clk 0:01:46]}  Bd6 {[%clk 0:02:54]} 13. c3 {[%clk 0:01:45]}  O-O-O {[%clk 0:02:51]} 14. O-O {[%clk 0:01:43]}  Rhe8 {[%clk 0:02:49]} 15. Nd2 {[%clk 0:01:41]}  c5 {[%clk 0:02:47]} 16. Be3 {[%clk 0:01:41]}  Ng4 {[%clk 0:02:44]} 17. Nc4 {[%clk 0:01:29]}  Nxe3 {[%clk 0:02:38]} 18. Nxe3 {[%clk 0:01:29]}  Bg6 {[%clk 0:02:36]} 19. Bf3 {[%clk 0:01:23]}  Be4 {[%clk 0:02:26]} 20. Bxe4 {[%clk 0:01:20]}  Rxe4 {[%clk 0:02:27]} 21. Rad1 {[%clk 0:01:19]}  g6 {[%clk 0:02:24]} 22. Rfe1 {[%clk 0:01:06]}  Bf4 {[%clk 0:02:22]} 23. Rxd8+ {[%clk 0:01:03]}  Kxd8 {[%clk 0:02:23]} 24. Rd1+ {[%clk 0:01:02]}  Kc8 {[%clk 0:02:22]} 25. Nd5 {[%clk 0:01:01]}  Be5 {[%clk 0:02:02]} 26. Kf1 {[%clk 0:01:00]}  h5 {[%clk 0:01:57]} 27. g3 {[%clk 0:00:53]}  h4 {[%clk 0:01:54]} 28. b3 {[%clk 0:00:34]}  hxg3 {[%clk 0:01:47]} 29. hxg3 {[%clk 0:00:35]}  Bg7 {[%clk 0:01:42]} 30. Rd2 {[%clk 0:00:35]}  b5 {[%clk 0:01:40]} 31. f3 {[%clk 0:00:34]}  Re8 {[%clk 0:01:39]} 32. Kf2 {[%clk 0:00:34]}  Kb7 {[%clk 0:01:38]} 33. f4 {[%clk 0:00:32]}  a6 {[%clk 0:01:33]} 34. Kf3 {[%clk 0:00:28]}  Rd8 {[%clk 0:01:30]} 35. c4 {[%clk 0:00:27]}  Re8 {[%clk 0:01:21]} 36. Re2 {[%clk 0:00:28]}  Rxe2 {[%clk 0:01:21]} 37. Kxe2 {[%clk 0:00:29]}  Kc6 {[%clk 0:01:18]} 38. Kd3 {[%clk 0:00:27]}  a5 {[%clk 0:01:14]} 39. a4 {[%clk 0:00:22]}  bxc4+ {[%clk 0:01:12]} 40. bxc4 {[%clk 0:00:17]}  Kd6 {[%clk 0:01:12]} 41. Ke4 {[%clk 0:00:18]}  f5+ {[%clk 0:01:09]} 42. Kf3 {[%clk 0:00:18]}  Bd4 {[%clk 0:01:09]} 43. Nb6 {[%clk 0:00:17]}  Bc3 {[%clk 0:01:07]} 44. Nd5 {[%clk 0:00:17]}  Bd4 {[%clk 0:01:07]} 45. g4 {[%clk 0:00:17]}  Ke6 {[%clk 0:01:04]} 46. g5 {[%clk 0:00:16]}  Bb2 {[%clk 0:01:01]} 47. Nb6 {[%clk 0:00:16]}  Bd4 {[%clk 0:00:57]} 48. Nd5 {[%clk 0:00:16]}  Bb2 {[%clk 0:00:57]} 49. Ne3 {[%clk 0:00:16]}  Bc1 {[%clk 0:00:52]} 50. Nd1 {[%clk 0:00:15]}  Bd2 {[%clk 0:00:50]} 51. Nb2 {[%clk 0:00:15]}  Bc3 {[%clk 0:00:49]} 52. Nd3 {[%clk 0:00:15]}  Bd4 {[%clk 0:00:49]} 53. Ke2 {[%clk 0:00:15]}  Kd6 {[%clk 0:00:49]} 54. Ne1 {[%clk 0:00:16]}  Ke6 {[%clk 0:00:49]} 55. Nf3 {[%clk 0:00:16]}  Bb2 {[%clk 0:00:47]} 56. Kd2 {[%clk 0:00:16]}  Ba3 {[%clk 0:00:44]} 57. Kc2 {[%clk 0:00:15]}  Kf7 {[%clk 0:00:41]} 58. Ne5+ {[%clk 0:00:15]}  Kg7 {[%clk 0:00:41]} 59. Nd3 {[%clk 0:00:15]}  Kf7 {[%clk 0:00:38]} 60. Kb3 {[%clk 0:00:13]}  Bb4 {[%clk 0:00:39]} 61. Kc2 {[%clk 0:00:12]}  Kg7 {[%clk 0:00:39]} 62. Kd1 {[%clk 0:00:12]}  Kf7 {[%clk 0:00:39]} 63. Ke2 {[%clk 0:00:13]}  Kg7 {[%clk 0:00:40]} 64. Ne5 {[%clk 0:00:13]}  Bc3 {[%clk 0:00:39]} 65. Nd7 {[%clk 0:00:14]}  Bb4 {[%clk 0:00:39]} 66. Kd3 {[%clk 0:00:13]}  Kf7 {[%clk 0:00:39]} 67. Nf6 {[%clk 0:00:13]}  Ba3 {[%clk 0:00:37]} 68. Nd5 {[%clk 0:00:13]}  Ke6 {[%clk 0:00:36]} 69. Nc7+ {[%clk 0:00:13]}  Kf7 {[%clk 0:00:36]} 70. Nb5 {[%clk 0:00:13]}  Bc1 {[%clk 0:00:36]} 71. Nd6+ {[%clk 0:00:09]}  Ke7 {[%clk 0:00:35]} 72. Nb7 {[%clk 0:00:10]}  Bxf4 {[%clk 0:00:36]} 73. Nxa5 {[%clk 0:00:10]}  Bxg5 {[%clk 0:00:28]} 74. Nb7 {[%clk 0:00:10]}  Bh4 {[%clk 0:00:25]} 75. a5 {[%clk 0:00:10]}  Kd7 {[%clk 0:00:22]} 76. a6 {[%clk 0:00:09]}  Kc6 {[%clk 0:00:21]} 77. Nxc5 {[%clk 0:00:09]}  Kb6 {[%clk 0:00:19]} 78. Ne6 {[%clk 0:00:05]}  Kxa6 {[%clk 0:00:17]} 79. Ke3 {[%clk 0:00:04]}  g5 {[%clk 0:00:16]} 80. Kf3 {[%clk 0:00:03]}  Kb6 {[%clk 0:00:15]} 81. Nd4 {[%clk 0:00:04]}  f4 {[%clk 0:00:14]} 82. Nf5 {[%clk 0:00:04]}  Be1 {[%clk 0:00:12]} 83. Kg4 {[%clk 0:00:04]}  Bd2 {[%clk 0:00:10]} 84. Nd4 {[%clk 0:00:03]}  Kc5 {[%clk 0:00:09]} 85. Nf3 {[%clk 0:00:04]}  Be3 {[%clk 0:00:09]} 86. Nxg5 {[%clk 0:00:04]}  Kxc4 {[%clk 0:00:10]} 87. Nf3 {[%clk 0:00:05]}  Kd3 {[%clk 0:00:10]} 88. Nh4 {[%clk 0:00:05]}  Ke4 {[%clk 0:00:11]} 89. Nf3 {[%clk 0:00:06]}  Bf2 {[%clk 0:00:11]} 90. Ng5+ {[%clk 0:00:06]}  Ke3 {[%clk 0:00:11]} 91. Nf3 {[%clk 0:00:07]}  Be1 {[%clk 0:00:11]} 92. Ng5 {[%clk 0:00:07]}  Bc3 {[%clk 0:00:11]} 93. Nf3 {[%clk 0:00:08]}  Bf6 {[%clk 0:00:12]} 94. Nh2 {[%clk 0:00:08]}  Be7 {[%clk 0:00:11]} 95. Nf3 {[%clk 0:00:08]}  Bd8 {[%clk 0:00:11]} 96. Nh2 {[%clk 0:00:09]}  Bc7 {[%clk 0:00:12]} 97. Nf3 {[%clk 0:00:09]}  Kf2 {[%clk 0:00:13]} 98. Nd4 {[%clk 0:00:09]}  Kg2 {[%clk 0:00:13]} 99. Nf3 {[%clk 0:00:09]}  Kf1 {[%clk 0:00:13]} 100. Nh4 {[%clk 0:00:09]}  Kf2 {[%clk 0:00:14]} 101. Nf3 {[%clk 0:00:09]}  Ke3 {[%clk 0:00:14]} 102. Ng5 {[%clk 0:00:09]}  Bd8 {[%clk 0:00:14]} 103. Nf3 {[%clk 0:00:10]}  Bf6 {[%clk 0:00:14]} 104. Nh2 {[%clk 0:00:10]}  Bc3 {[%clk 0:00:14]} 105. Nf3 {[%clk 0:00:10]}  Bd2 {[%clk 0:00:15]} 106. Nxd2 {[%clk 0:00:10]}  Kxd2 {[%clk 0:00:15]} 107. Kxf4 {[%clk 0:00:10]} 1/2-1/2


[Site "https://www.chess.com"]

[Event "Titled Tuesday Blitz May 16 Late 2023"]
[White "Mahdavi, Reza"]
[Black "Domingo Nunez, Alejandro"]
[WhiteFideId "12595926"]
[BlackFideId "22245561"]
[WhiteElo "2352"]
[BlackElo "2291"]
[Result "0-1"]
[Round "02"]
[TimeControl "180+2"]
[Date "2023.05.16"]
[WhiteClock "0:00:10"]
[BlackClock "0:00:18"]

1. e4 {[%clk 0:03:00]}  g6 {[%clk 0:02:59]} 2. d4 {[%clk 0:02:55]}  Bg7 {[%clk 0:03:00]} 3. Nc3 {[%clk 0:02:54]}  c6 {[%clk 0:03:01]} 4. f4 {[%clk 0:02:51]}  d5 {[%clk 0:03:01]} 5. e5 {[%clk 0:02:52]}  f6 {[%clk 0:03:02]} 6. Nf3 {[%clk 0:02:52]}  Nh6 {[%clk 0:03:02]} 7. h3 {[%clk 0:02:51]}  Nf5 {[%clk 0:03:00]} 8. Ne2 {[%clk 0:02:45]}  h5 {[%clk 0:02:37]} 9. g3 {[%clk 0:02:43]}  c5 {[%clk 0:02:31]} 10. c3 {[%clk 0:02:33]}  Nc6 {[%clk 0:02:30]} 11. Kf2 {[%clk 0:02:30]}  cxd4 {[%clk 0:02:21]} 12. cxd4 {[%clk 0:02:29]}  Qb6 {[%clk 0:02:03]} 13. Kg2 {[%clk 0:02:28]}  Be6 {[%clk 0:01:57]} 14. a3 {[%clk 0:02:22]}  O-O-O {[%clk 0:01:56]} 15. b4 {[%clk 0:02:22]}  Kb8 {[%clk 0:01:56]} 16. Rb1 {[%clk 0:02:20]}  g5 {[%clk 0:01:52]} 17. b5 {[%clk 0:02:16]}  g4 {[%clk 0:01:45]} 18. Ne1 {[%clk 0:01:46]}  Ncxd4 {[%clk 0:01:40]} 19. Nxd4 {[%clk 0:01:46]}  Qxd4 {[%clk 0:01:40]} 20. Qxd4 {[%clk 0:01:44]}  Nxd4 {[%clk 0:01:41]} 21. exf6 {[%clk 0:01:44]}  Bxf6 {[%clk 0:01:39]} 22. hxg4 {[%clk 0:01:39]}  hxg4 {[%clk 0:01:37]} 23. Rxh8 {[%clk 0:01:38]}  Rxh8 {[%clk 0:01:38]} 24. Be3 {[%clk 0:01:39]}  Nf5 {[%clk 0:01:29]} 25. Bf2 {[%clk 0:01:38]}  d4 {[%clk 0:01:29]} 26. Kg1 {[%clk 0:01:35]}  Ne3 {[%clk 0:01:17]} 27. Bxe3 {[%clk 0:00:51]}  dxe3 {[%clk 0:01:17]} 28. Rd1 {[%clk 0:00:40]}  Bc3 {[%clk 0:01:04]} 29. Ng2 {[%clk 0:00:33]}  Bd2 {[%clk 0:01:02]} 30. Be2 {[%clk 0:00:28]}  Bf5 {[%clk 0:00:53]} 31. Nh4 {[%clk 0:00:25]}  e6 {[%clk 0:00:38]} 32. Nxf5 {[%clk 0:00:05]}  exf5 {[%clk 0:00:39]} 33. Bd3 {[%clk 0:00:06]}  Kc7 {[%clk 0:00:31]} 34. Kf1 {[%clk 0:00:04]}  Rh1+ {[%clk 0:00:28]} 35. Ke2 {[%clk 0:00:05]}  Rh2+ {[%clk 0:00:28]} 36. Kf1 {[%clk 0:00:05]}  Rf2+ {[%clk 0:00:29]} 37. Kg1 {[%clk 0:00:06]}  Rf3 {[%clk 0:00:29]} 38. Kg2 {[%clk 0:00:04]}  Rf2+ {[%clk 0:00:27]} 39. Kg1 {[%clk 0:00:04]}  e2 {[%clk 0:00:22]} 40. Bxe2 {[%clk 0:00:01]}  Rxe2 {[%clk 0:00:22]} 41. Kf1 {[%clk 0:00:02]}  Re1+ {[%clk 0:00:13]} 42. Rxe1 {[%clk 0:00:02]}  Bxe1 {[%clk 0:00:14]} 43. Kxe1 {[%clk 0:00:03]}  Kb6 {[%clk 0:00:14]} 44. Kd2 {[%clk 0:00:04]}  Kxb5 {[%clk 0:00:15]} 45. Kd3 {[%clk 0:00:03]}  Kc5 {[%clk 0:00:16]} 46. Kc3 {[%clk 0:00:04]}  b5 {[%clk 0:00:15]} 47. Kb3 {[%clk 0:00:04]}  a5 {[%clk 0:00:15]} 48. Kc3 {[%clk 0:00:05]}  Kd5 {[%clk 0:00:16]} 49. Kd3 {[%clk 0:00:05]}  b4 {[%clk 0:00:16]} 50. a4 {[%clk 0:00:06]}  Kc5 {[%clk 0:00:16]} 51. Kd2 {[%clk 0:00:06]}  Kd4 {[%clk 0:00:16]} 52. Kc2 {[%clk 0:00:07]}  Kc4 {[%clk 0:00:17]} 53. Kb2 {[%clk 0:00:07]}  Kd4 {[%clk 0:00:16]} 54. Kb3 {[%clk 0:00:07]}  Kd3 {[%clk 0:00:16]} 55. Kb2 {[%clk 0:00:08]}  Kc4 {[%clk 0:00:16]} 56. Ka2 {[%clk 0:00:08]}  Kc3 {[%clk 0:00:16]} 57. Ka1 {[%clk 0:00:09]}  Kb3 {[%clk 0:00:17]} 58. Kb1 {[%clk 0:00:09]}  Kxa4 {[%clk 0:00:17]} 59. Kc2 {[%clk 0:00:10]}  Kb5 {[%clk 0:00:18]} 60. Kd3 {[%clk 0:00:10]}  Kc5 {[%clk 0:00:18]} 0-1


[Site "https://www.chess.com"]

[Event "Titled Tuesday Blitz May 16 Late 2023"]
[White "Danielyan, Vahe"]
[Black "Holt, Conrad"]
[WhiteFideId "13304828"]
[BlackFideId "2034387"]
[WhiteElo "2423"]
[BlackElo "2592"]
[Result "0-1"]
[Round "02"]
[TimeControl "180+2"]
[Date "2023.05.16"]
[WhiteClock "0:02:12"]
[BlackClock "0:01:45"]

1. d4 {[%clk 0:02:59]}  d5 {[%clk 0:02:45]} 2. c4 {[%clk 0:02:59]}  c6 {[%clk 0:02:45]} 3. Nc3 {[%clk 0:02:58]}  dxc4 {[%clk 0:02:45]} 4. Nf3 {[%clk 0:02:58]}  Nf6 {[%clk 0:02:44]} 5. a4 {[%clk 0:02:57]}  Bf5 {[%clk 0:02:43]} 6. Ne5 {[%clk 0:02:57]}  Nbd7 {[%clk 0:02:43]} 7. Nxc4 {[%clk 0:02:56]}  Nb6 {[%clk 0:02:43]} 8. Ne5 {[%clk 0:02:56]}  a5 {[%clk 0:02:43]} 9. g3 {[%clk 0:02:52]}  e6 {[%clk 0:02:40]} 10. Bg2 {[%clk 0:02:51]}  Bb4 {[%clk 0:02:40]} 11. O-O {[%clk 0:02:51]}  O-O {[%clk 0:02:40]} 12. Qb3 {[%clk 0:02:50]}  Qxd4 {[%clk 0:02:33]} 13. Nf3 {[%clk 0:02:48]}  Qc4 {[%clk 0:02:31]} 14. Nd2 {[%clk 0:02:43]}  Qxb3 {[%clk 0:02:29]} 15. Nxb3 {[%clk 0:02:44]}  Rfd8 {[%clk 0:02:24]} 16. e4 {[%clk 0:02:44]}  Bg6 {[%clk 0:02:20]} 17. e5 {[%clk 0:02:41]}  Nfd7 {[%clk 0:02:14]} 18. f4 {[%clk 0:02:30]}  Nc4 {[%clk 0:02:01]} 19. g4 {[%clk 0:02:29]}  Bd3 {[%clk 0:01:53]} 20. Rf3 {[%clk 0:02:22]}  Bc2 {[%clk 0:01:48]} 21. Nd4 {[%clk 0:02:17]}  Bc5 {[%clk 0:01:46]} 22. Be3 {[%clk 0:02:12]}  Nxe3 {[%clk 0:01:45]} 0-1


[Site "https://www.chess.com"]

[Event "Titled Tuesday Blitz May 16 Late 2023"]
[White "Mortazavi, Ali"]
[Black "Makridis, Dimitrios"]
[WhiteFideId "401323"]
[BlackFideId "25864475"]
[WhiteElo "2339"]
[BlackElo "2277"]
[Result "0-1"]
[Round "02"]
[TimeControl "180+2"]
[Date "2023.05.16"]
[WhiteClock "0:00:00"]
[BlackClock "0:00:04"]

1. Nf3 {[%clk 0:03:00]}  Nf6 {[%clk 0:02:57]} 2. g3 {[%clk 0:03:01]}  g6 {[%clk 0:02:54]} 3. Bg2 {[%clk 0:03:01]}  Bg7 {[%clk 0:02:49]} 4. O-O {[%clk 0:03:02]}  O-O {[%clk 0:02:50]} 5. d3 {[%clk 0:03:03]}  d6 {[%clk 0:02:50]} 6. e4 {[%clk 0:03:03]}  Nbd7 {[%clk 0:02:51]} 7. Nc3 {[%clk 0:02:58]}  c5 {[%clk 0:01:53]} 8. a4 {[%clk 0:02:57]}  Ng4 {[%clk 0:01:53]} 9. h3 {[%clk 0:02:47]}  Nge5 {[%clk 0:01:53]} 10. Nh2 {[%clk 0:02:42]}  Nc6 {[%clk 0:01:52]} 11. f4 {[%clk 0:02:41]}  e6 {[%clk 0:01:50]} 12. Kh1 {[%clk 0:02:41]}  Nd4 {[%clk 0:01:45]} 13. Nb5 {[%clk 0:02:23]}  Nf6 {[%clk 0:01:40]} 14. c3 {[%clk 0:01:53]}  Nxb5 {[%clk 0:01:38]} 15. axb5 {[%clk 0:01:54]}  Nh5 {[%clk 0:01:37]} 16. Qe1 {[%clk 0:01:51]}  Bd7 {[%clk 0:01:31]} 17. g4 {[%clk 0:01:47]}  Nf6 {[%clk 0:01:30]} 18. e5 {[%clk 0:01:31]}  dxe5 {[%clk 0:01:30]} 19. fxe5 {[%clk 0:01:32]}  Nd5 {[%clk 0:01:30]} 20. g5 {[%clk 0:01:31]}  Bxb5 {[%clk 0:00:56]} 21. c4 {[%clk 0:01:19]}  Nb4 {[%clk 0:00:55]} 22. cxb5 {[%clk 0:01:19]}  Nc2 {[%clk 0:00:54]} 23. Qh4 {[%clk 0:01:19]}  Nxa1 {[%clk 0:00:53]} 24. Ng4 {[%clk 0:01:19]}  Qd4 {[%clk 0:00:30]} 25. Bf4 {[%clk 0:00:56]}  Nc2 {[%clk 0:00:26]} 26. Be4 {[%clk 0:00:43]}  c4 {[%clk 0:00:21]} 27. Nf6+ {[%clk 0:00:31]}  Bxf6 {[%clk 0:00:21]} 28. gxf6 {[%clk 0:00:29]}  Kh8 {[%clk 0:00:16]} 29. Bh6 {[%clk 0:00:29]}  cxd3 {[%clk 0:00:14]} 30. Bg7+ {[%clk 0:00:17]}  Kg8 {[%clk 0:00:14]} 31. Rf4 {[%clk 0:00:16]}  h5 {[%clk 0:00:09]} 32. Qg5 {[%clk 0:00:11]}  d2 {[%clk 0:00:09]} 33. Bf3 {[%clk 0:00:03]}  d1=Q+ {[%clk 0:00:07]} 34. Bxd1 {[%clk 0:00:04]}  Qxd1+ {[%clk 0:00:08]} 35. Kg2 {[%clk 0:00:04]}  Ne3+ {[%clk 0:00:08]} 36. Kg3 {[%clk 0:00:04]}  Qg1+ {[%clk 0:00:07]} 37. Kh4 {[%clk 0:00:04]}  Ng2+ {[%clk 0:00:07]} 38. Qxg2 {[%clk 0:00:04]}  Qxg2 {[%clk 0:00:07]} 39. Bh6 {[%clk 0:00:03]}  Kh7 {[%clk 0:00:07]} 40. Bg5 {[%clk 0:00:03]}  Rad8 {[%clk 0:00:06]} 41. b4 {[%clk 0:00:03]}  Rd3 {[%clk 0:00:06]} 42. Rf3 {[%clk 0:00:00]}  Rxf3 {[%clk 0:00:04]} 0-1


[Site "https://www.chess.com"]

[Event "Titled Tuesday Blitz May 16 Late 2023"]
[White "AyMitecK"]
[Black "Remizov, Yaroslav"]
[BlackFideId "34134015"]
[WhiteElo "2556"]
[BlackElo "2400"]
[Result "0-1"]
[Round "02"]
[TimeControl "180+2"]
[Date "2023.05.16"]
[WhiteClock "0:00:22"]
[BlackClock "0:00:09"]

1. e4 {[%clk 0:02:59]}  c5 {[%clk 0:02:59]} 2. Nf3 {[%clk 0:02:59]}  e6 {[%clk 0:02:59]} 3. Nc3 {[%clk 0:02:58]}  Nc6 {[%clk 0:02:58]} 4. d4 {[%clk 0:02:58]}  cxd4 {[%clk 0:02:58]} 5. Nxd4 {[%clk 0:02:59]}  Nf6 {[%clk 0:02:58]} 6. Be3 {[%clk 0:02:59]}  Bb4 {[%clk 0:02:58]} 7. Nxc6 {[%clk 0:02:59]}  bxc6 {[%clk 0:02:57]} 8. Qd4 {[%clk 0:02:57]}  c5 {[%clk 0:02:51]} 9. Qc4 {[%clk 0:02:38]}  d5 {[%clk 0:02:49]} 10. exd5 {[%clk 0:02:34]}  exd5 {[%clk 0:02:49]} 11. Qe2 {[%clk 0:02:18]}  O-O {[%clk 0:02:45]} 12. a3 {[%clk 0:02:16]}  Bxc3+ {[%clk 0:01:02]} 13. bxc3 {[%clk 0:02:17]}  d4 {[%clk 0:01:02]} 14. Rd1 {[%clk 0:01:54]}  Qa5 {[%clk 0:00:58]} 15. Bd2 {[%clk 0:01:46]}  Re8 {[%clk 0:00:57]} 16. cxd4 {[%clk 0:01:46]}  Rxe2+ {[%clk 0:00:54]} 17. Bxe2 {[%clk 0:01:47]}  Qxa3 {[%clk 0:00:52]} 18. dxc5 {[%clk 0:01:46]}  Bb7 {[%clk 0:00:50]} 19. O-O {[%clk 0:01:44]}  Qxc5 {[%clk 0:00:50]} 20. Be3 {[%clk 0:01:40]}  Qxc2 {[%clk 0:00:50]} 21. Rd2 {[%clk 0:01:35]}  Qg6 {[%clk 0:00:50]} 22. f3 {[%clk 0:01:33]}  Re8 {[%clk 0:00:48]} 23. Bxa7 {[%clk 0:01:27]}  Qg5 {[%clk 0:00:45]} 24. Rb2 {[%clk 0:01:23]}  Bc6 {[%clk 0:00:40]} 25. Rc2 {[%clk 0:01:07]}  Ba4 {[%clk 0:00:39]} 26. Ra2 {[%clk 0:01:06]}  Bb3 {[%clk 0:00:38]} 27. Rb2 {[%clk 0:01:06]}  Qe5 {[%clk 0:00:35]} 28. Rfb1 {[%clk 0:00:59]}  h5 {[%clk 0:00:32]} 29. Bf1 {[%clk 0:00:55]}  Be6 {[%clk 0:00:31]} 30. Re2 {[%clk 0:00:54]}  Qc7 {[%clk 0:00:30]} 31. Bb6 {[%clk 0:00:53]}  Qd6 {[%clk 0:00:26]} 32. Bf2 {[%clk 0:00:49]}  Nd5 {[%clk 0:00:25]} 33. Rd1 {[%clk 0:00:48]}  Rc8 {[%clk 0:00:20]} 34. Red2 {[%clk 0:00:48]}  Qc6 {[%clk 0:00:18]} 35. h3 {[%clk 0:00:46]}  Kh7 {[%clk 0:00:17]} 36. Bd3+ {[%clk 0:00:46]}  g6 {[%clk 0:00:17]} 37. Be4 {[%clk 0:00:47]}  Rd8 {[%clk 0:00:15]} 38. Bh4 {[%clk 0:00:47]}  Rd7 {[%clk 0:00:15]} 39. Kh1 {[%clk 0:00:45]}  Qc4 {[%clk 0:00:15]} 40. Rd4 {[%clk 0:00:44]}  Qc5 {[%clk 0:00:14]} 41. Bf2 {[%clk 0:00:43]}  Qa5 {[%clk 0:00:14]} 42. Be1 {[%clk 0:00:40]}  Qb5 {[%clk 0:00:14]} 43. Bf2 {[%clk 0:00:40]}  Nc3 {[%clk 0:00:13]} 44. Re1 {[%clk 0:00:32]}  Rxd4 {[%clk 0:00:12]} 45. Bxd4 {[%clk 0:00:33]}  Nxe4 {[%clk 0:00:12]} 46. Rxe4 {[%clk 0:00:34]}  Qd3 {[%clk 0:00:11]} 47. Bf6 {[%clk 0:00:32]}  Qd5 {[%clk 0:00:09]} 48. Rd4 {[%clk 0:00:27]}  Qc5 {[%clk 0:00:09]} 49. Rd8 {[%clk 0:00:23]}  Qc1+ {[%clk 0:00:08]} 50. Rd1 {[%clk 0:00:20]}  Qxd1+ {[%clk 0:00:08]} 51. Kh2 {[%clk 0:00:20]}  Qd6+ {[%clk 0:00:08]} 52. Be5 {[%clk 0:00:20]}  Qxe5+ {[%clk 0:00:08]} 53. f4 {[%clk 0:00:21]}  Qxf4+ {[%clk 0:00:08]} 54. g3 {[%clk 0:00:22]}  Qf2+ {[%clk 0:00:08]} 55. Kh1 {[%clk 0:00:22]}  Bd5# {[%clk 0:00:09]} 0-1


[Site "https://www.chess.com"]

[Event "Titled Tuesday Blitz May 16 Late 2023"]
[White "Yanchenko, Roman"]
[Black "Ravuri, Vinesh"]
[WhiteFideId "4137329"]
[BlackFideId "45042632"]
[WhiteElo "2491"]
[BlackElo "2066"]
[Result "0-1"]
[Round "02"]
[TimeControl "180+2"]
[Date "2023.05.16"]
[WhiteClock "0:00:07"]
[BlackClock "0:00:11"]

1. d4 {[%clk 0:02:44]}  Nf6 {[%clk 0:02:59]} 2. c4 {[%clk 0:02:44]}  b6 {[%clk 0:02:54]} 3. Nf3 {[%clk 0:02:44]}  Bb7 {[%clk 0:02:55]} 4. g3 {[%clk 0:02:44]}  e6 {[%clk 0:02:55]} 5. Bg2 {[%clk 0:02:44]}  Be7 {[%clk 0:02:52]} 6. O-O {[%clk 0:02:44]}  O-O {[%clk 0:02:52]} 7. Nc3 {[%clk 0:02:44]}  d6 {[%clk 0:02:51]} 8. b3 {[%clk 0:02:44]}  Nbd7 {[%clk 0:02:51]} 9. Bb2 {[%clk 0:02:44]}  Ne4 {[%clk 0:02:48]} 10. Rc1 {[%clk 0:02:41]}  f5 {[%clk 0:02:47]} 11. d5 {[%clk 0:02:21]}  e5 {[%clk 0:02:37]} 12. Nxe4 {[%clk 0:02:14]}  fxe4 {[%clk 0:02:38]} 13. Nd2 {[%clk 0:02:14]}  e3 {[%clk 0:02:36]} 14. fxe3 {[%clk 0:02:14]}  Bg5 {[%clk 0:02:34]} 15. Rc3 {[%clk 0:02:14]}  Nc5 {[%clk 0:02:28]} 16. Bc1 {[%clk 0:02:00]}  Qe7 {[%clk 0:02:23]} 17. b4 {[%clk 0:01:58]}  Rxf1+ {[%clk 0:02:19]} 18. Bxf1 {[%clk 0:01:51]}  Nd7 {[%clk 0:02:12]} 19. e4 {[%clk 0:01:45]}  Rf8 {[%clk 0:02:11]} 20. Rf3 {[%clk 0:01:44]}  Nf6 {[%clk 0:02:08]} 21. Bg2 {[%clk 0:01:41]}  Ng4 {[%clk 0:01:57]} 22. Nf1 {[%clk 0:01:38]}  Bxc1 {[%clk 0:01:53]} 23. Qxc1 {[%clk 0:01:39]}  h6 {[%clk 0:01:46]} 24. Ne3 {[%clk 0:01:34]}  Nxe3 {[%clk 0:01:43]} 25. Qxe3 {[%clk 0:01:34]}  Rf6 {[%clk 0:01:40]} 26. Bh3 {[%clk 0:01:32]}  g5 {[%clk 0:01:28]} 27. Bf5 {[%clk 0:00:52]}  Kg7 {[%clk 0:01:24]} 28. h4 {[%clk 0:00:48]}  Rf8 {[%clk 0:01:24]} 29. hxg5 {[%clk 0:00:48]}  Qxg5 {[%clk 0:01:25]} 30. Qxg5+ {[%clk 0:00:47]}  hxg5 {[%clk 0:01:26]} 31. c5 {[%clk 0:00:45]}  Ba6 {[%clk 0:01:15]} 32. Kf2 {[%clk 0:00:44]}  Bc4 {[%clk 0:01:10]} 33. Rc3 {[%clk 0:00:36]}  Bxd5 {[%clk 0:01:01]} 34. exd5 {[%clk 0:00:28]}  Rxf5+ {[%clk 0:01:01]} 35. Ke3 {[%clk 0:00:29]}  Rf1 {[%clk 0:00:35]} 36. cxd6 {[%clk 0:00:26]}  cxd6 {[%clk 0:00:36]} 37. Rc7+ {[%clk 0:00:26]}  Kf6 {[%clk 0:00:33]} 38. Rd7 {[%clk 0:00:17]}  Rb1 {[%clk 0:00:29]} 39. g4 {[%clk 0:00:16]}  Rxb4 {[%clk 0:00:25]} 40. Rxd6+ {[%clk 0:00:17]}  Ke7 {[%clk 0:00:20]} 41. Re6+ {[%clk 0:00:17]}  Kd7 {[%clk 0:00:20]} 42. Rxe5 {[%clk 0:00:17]}  Rxg4 {[%clk 0:00:21]} 43. Kd3 {[%clk 0:00:17]}  Kd6 {[%clk 0:00:20]} 44. Rf5 {[%clk 0:00:17]}  a5 {[%clk 0:00:17]} 45. e4 {[%clk 0:00:18]}  Rg1 {[%clk 0:00:15]} 46. Rf6+ {[%clk 0:00:17]}  Kd7 {[%clk 0:00:16]} 47. Rxb6 {[%clk 0:00:18]}  g4 {[%clk 0:00:15]} 48. e5 {[%clk 0:00:18]}  g3 {[%clk 0:00:14]} 49. Rb7+ {[%clk 0:00:17]}  Kc8 {[%clk 0:00:14]} 50. Rg7 {[%clk 0:00:17]}  g2 {[%clk 0:00:14]} 51. Ke2 {[%clk 0:00:16]}  Ra1 {[%clk 0:00:12]} 52. Rg8+ {[%clk 0:00:15]}  Kb7 {[%clk 0:00:10]} 53. Rxg2 {[%clk 0:00:11]}  Rxa2+ {[%clk 0:00:10]} 54. Kf3 {[%clk 0:00:11]}  Rxg2 {[%clk 0:00:10]} 55. Kxg2 {[%clk 0:00:12]}  a4 {[%clk 0:00:11]} 56. Kf3 {[%clk 0:00:08]}  a3 {[%clk 0:00:11]} 57. Ke4 {[%clk 0:00:08]}  a2 {[%clk 0:00:12]} 58. e6 {[%clk 0:00:09]}  a1=Q {[%clk 0:00:12]} 59. Kf5 {[%clk 0:00:07]}  Kc7 {[%clk 0:00:11]} 0-1


[Site "https://www.chess.com"]